[Event "USA-ch Women 2024"]
[Site "Saint Louis"]
[Date "2024.10.16"]
[Round "5.1"]
[White "Cervantes Landeiro, Thalia"]
[Black "Krush, Irina"]
[Result "0-1"]
[ECO "A42"]
[WhiteElo "2302"]
[BlackElo "2388"]
[Annotator "RC"]
[PlyCount "180"]
[EventDate "2024.10.09"]
[EventType "tourn"]
[EventCountry "USA"]
[SourceTitle "playchess.com"]
[Source "ChessBase"]
[SourceQuality "1"]
[TimeControl "40/5400+30:1800+30"]

1. d4 {[%emt 0:00:03]} g6 {[%emt 0:00:13]} 2. c4 {[%emt 0:00:16]} Bg7 {[%emt 0:00:09]} 3. Nc3 {[%emt 0:01:35]} d6 {[%emt 0:00:34]} 4. e4 {[%emt 0:01:19]} e5 {[%emt 0:00:18]} 5. d5 {[%emt 0:03:22]} a5 {[%emt 0:00:16]} 6. Bd3 {[%emt 0:01:14]} Na6 {[%emt 0:00:14]} 7. Be3 {[%emt 0:02:10]} h5 {[%emt 0:00:46]} 8. Nge2 {[%emt 0:04:22]} Bh6 {[%emt 0:00:40]} 9. Bxh6 {[%emt 0:01:23]} Nxh6 {[%emt 0:00:05]} 10. Qd2 {[%emt 0:03:40]} Nc5 {[%emt 0:00:31]} 11. Bc2 {[%emt 0:01:27]} Qe7 {[%emt 0:00:21]} 12. O-O-O {[%emt 0:03:20]} f5 {[%emt 0:02:29]} 13. f4 {[%emt 0:05:35]} Ng4 {[%emt 0:00:27]} 14. exf5 {[%emt 0:07:23]} Bxf5 {[%emt 0:12:11]} 15. Bxf5 {[%emt 0:06:06]} gxf5 {[%emt 0:00:05]} 16. Ng3 {[%emt 0:11:46]} exf4 {[%emt 0:12:53]} 17. Qxf4 {[%emt 0:11:11]} O-O-O {[%emt 0:01:46]} 18. Kb1 {[%emt 0:04:28]} Rde8 {[%emt 0:13:18]} 19. Rd2 {[%emt 0:12:33]} Kb8 {[%emt 0:06:27]} 20. Re2 {[%emt 0:00:52]} Ne5 {[%emt 0:01:59]} 21. Qxf5 {[%emt 0:05:56]} Qh4 {[%emt 0:06:35]} 22. Nge4 {[%emt 0:01:19]} Nxc4 {[%emt 0:02:54]} 23. Nxc5 {[%emt 0:01:02]} dxc5 {[%emt 0:00:31]} 24. Qc2 {[%emt 0:02:32]} Rhf8 {[%emt 0:08:54]} 25. g3 {[%emt 0:00:40]} Qg4 {[%emt 0:08:21]} 26. Rhe1 {[%emt 0:00:28]} Rxe2 {[%emt 0:07:33]} 27. Qxe2 {[%emt 0:00:08]} Qf5+ {[%emt 0:01:11]} 28. Qc2 {[%emt 0:01:38]} Qg5 {[%emt 0:04:28]} 29. a4 {[%emt 0:01:25]} b6 {[%emt 0:02:04]} 30. Qe2 {[%emt 0:01:43]} Nd6 {[%emt 0:01:46]} 31. Qc2 {[%emt 0:01:20]} h4 {[%emt 0:00:55]} 32. gxh4 {[%emt 0:02:26]} Qxh4 {[%emt 0:00:08]} 33. Rd1 {[%emt 0:01:07]} Rf2 {[%emt 0:02:41]} 34. Rd2 {[%emt 0:00:20]} Rf4 {[%emt 0:00:01]} 35. Ka2 {[%emt 0:00:44]} Rb4 {[%emt 0:01:02]} 36. Re2 {[%emt 0:00:37]} Kb7 {[%emt 0:01:17]} 37. Qd3 {[%emt 0:00:48]} Qf4 {[%emt 0:01:27]} 38. h3 {[%emt 0:00:30]} Qc1 {[%emt 0:00:56]} 39. Rc2 {[%emt 0:00:28]} Qg1 {[%emt 0:00:22]} 40. Re2 {[%emt 0:00:32]} Rf4 {[%emt 0:01:00]} 41. Qe3 {[%emt 0:06:33]} Qf1 {[%emt 0:07:23]} 42. Qe6 {[%emt 0:05:57]} Rc4 {[%emt 0:18:38]} 43. Re1 {[%emt 0:05:34]} Qd3 {[%emt 0:01:39]} 44. Re3 {[%emt 0:01:19]} Qd2 {[%emt 0:02:44]} 45. Re2 {[%emt 0:01:29]} Qd4 {[%emt 0:00:50]} 46. Qe3 {[%emt 0:05:37]} Qh4 {[%emt 0:00:13]} 47. Qf3 {[%emt 0:01:28]} Rb4 {[%emt 0:01:01]} 48. Qd3 {[%emt 0:02:50]} Qf4 {[%emt 0:00:22]} 49. Rg2 {[%emt 0:00:59]} Qc1 {[%emt 0:01:15]} 50. Rc2 {[%emt 0:00:56]} Qh1 {[%emt 0:00:18]} 51. Rf2 {[%emt 0:01:08]} Rh4 {[%emt 0:00:34]} 52. Rf3 {[%emt 0:00:51]} Qh2 {[%emt 0:00:15]} 53. Re3 {[%emt 0:01:15]} Nc4 {[%emt 0:01:12]} 54. Re2 {[%emt 0:00:47]} Qxh3 {[%emt 0:00:08]} 55. Qxh3 {[%emt 0:00:38]} Rxh3 {[%emt 0:00:02]} 56. Nb5 {[%emt 0:00:35]} Rh7 {[%emt 0:00:25]} 57. b3 {[%emt 0:00:35]} Nd6 {[%emt 0:00:15]} 58. Nxd6+ {[%emt 0:00:28]} cxd6 {[%emt 0:00:02]} 59. Kb2 {[%emt 0:00:28]} Rh5 {[%emt 0:00:30]} 60. Rd2 {[%emt 0:00:20]} b5 {[%emt 0:00:35]} 61. Kc3 {[%emt 0:00:52]} Kb6 {[%emt 0:00:49]} 62. axb5 {[%emt 0:00:25]} Kxb5 {[%emt 0:00:02]} 63. Rd3 {[%emt 0:00:07]} Rg5 {[%emt 0:00:33]} 64. Rh3 {[%emt 0:00:55]} Rxd5 {[%emt 0:00:18]} 65. Rh8 {[%emt 0:00:05]} Rd4 {[%emt 0:00:20]} 66. Rb8+ {[%emt 0:00:13]} Kc6 {[%emt 0:00:09]} 67. Ra8 {[%emt 0:00:20]} a4 {[%emt 0:00:58]} 68. bxa4 {[%emt 0:00:23]} Rh4 {[%emt 0:01:33]} 69. a5 {[%emt 0:00:55]} Rh3+ {[%emt 0:00:58]} 70. Kb2 {[%emt 0:00:30]} Kb5 {[%emt 0:00:55]} 71. a6 {[%emt 0:00:38]} Kb6 {[%emt 0:00:18]} 72. a7 {[%emt 0:00:47]} Rd3 {[%emt 0:00:22]} 73. Kc2 {[%emt 0:00:15]} Rd4 {[%emt 0:00:03]} 74. Kc3 {[%emt 0:00:21]} Kb7 {[%emt 0:00:07]} 75. Rb8+ {[%emt 0:00:10]} Kxa7 {[%emt 0:00:05]} 76. Rb1 {[%emt 0:00:47]} Ka6 {[%emt 0:00:08]} 77. Rb8 {[%emt 0:00:18]} Ka5 {[%emt 0:00:59]} 78. Rb1 {[%emt 0:00:40]} d5 {[%emt 0:01:10]} 79. Rb8 {[%emt 0:00:27]} Rc4+ {[%emt 0:00:20]} 80. Kd3 {[%emt 0:00:17]} Rb4 {[%emt 0:00:16]} 81. Ra8+ {[%emt 0:01:19]} Kb5 {[%emt 0:00:06]} 82. Rb8+ {[%emt 0:00:23]} Ka4 {[%emt 0:00:11]} 83. Rd8 {[%emt 0:00:07]} d4 {[%emt 0:01:38]} 84. Rc8 {[%emt 0:00:29]} Rb3+ {[%emt 0:00:09]} 85. Kc2 {[%emt 0:00:25]} Rc3+ {[%emt 0:00:21]} 86. Kd2 {[%emt 0:00:13]} Kb4 {[%emt 0:00:05]} 87. Rb8+ {[%emt 0:00:27]} Kc4 {[%emt 0:00:05]} 88. Ra8 {[%emt 0:00:21]} Rb3 {[%emt 0:00:44]} 89. Ra4+ {[%emt 0:00:30]} Rb4 {[%emt 0:00:07]} 90. Ra2 {[%emt 0:00:17]} Kb3 {[%emt 0:01:52]} 0-1

[Event "USA-ch Women 2024"]
[Site "Saint Louis"]
[Date "2024.10.16"]
[Round "5.2"]
[White "Pourkashiyan, Atousa"]
[Black "Lee, Alice"]
[Result "0-1"]
[ECO "B50"]
[WhiteElo "2269"]
[BlackElo "2395"]
[Annotator "RC"]
[PlyCount "60"]
[EventDate "2024.10.09"]
[EventType "tourn"]
[EventCountry "USA"]
[SourceTitle "playchess.com"]
[Source "ChessBase"]
[SourceQuality "1"]
[TimeControl "40/5400+30:1800+30"]

1. e4 {[%emt 0:00:04]} c5 {[%emt 0:00:16]} 2. Nf3 {[%emt 0:00:18]} d6 {[%emt 0:00:18]} 3. c3 {[%emt 0:03:11]} Nf6 {[%emt 0:00:58]} 4. Be2 {[%emt 0:00:17]} Nc6 {[%emt 0:01:28]} 5. d4 {[%emt 0:01:18]} cxd4 {[%emt 0:01:20]} 6. cxd4 {[%emt 0:00:10]} Nxe4 {[%emt 0:16:02]} 7. d5 {[%emt 0:00:43]} Qa5+ {[%emt 0:00:11]} 8. Nc3 {[%emt 0:10:04]} Nxc3 {[%emt 0:04:04]} 9. bxc3 {[%emt 0:00:09]} Ne5 {[%emt 0:00:35]} 10. O-O {[%emt 0:01:42]} g6 {[%emt 0:04:14]} 11. Nxe5 {[%emt 0:10:34]} dxe5 {[%emt 0:00:15]} 12. Rb1 {[%emt 0:02:25]} a6 {[%emt 0:05:36]} 13. a4 {[%emt 0:07:00]} Qd8 {[%emt 0:04:31]} 14. Ba3 {[%emt 0:03:56]} Bg7 {[%emt 0:12:44]} 15. d6 {[%emt 0:01:07]} Bf8 {[%emt 0:04:37]} 16. f4 {[%emt 0:14:41]} exd6 {[%emt 0:05:34]} 17. Bc4 {[%emt 0:17:33]} Be7 {[%emt 0:06:42]} 18. fxe5 {[%emt 0:01:34]} d5 {[%emt 0:00:49]} 19. Bxd5 {[%emt 0:05:28]} O-O {[%emt 0:02:44]} 20. Bxf7+ {[%emt 0:07:58]} Rxf7 {[%emt 0:00:46]} 21. Qb3 {[%emt 0:00:17]} Bf5 {[%emt 0:01:49]} 22. g4 {[%emt 0:03:47]} Bxa3 {[%emt 0:01:13]} 23. gxf5 {[%emt 0:00:04]} Bc5+ {[%emt 0:00:08]} 24. Kh1 {[%emt 0:00:05]} Qd3 {[%emt 0:01:59]} 25. Rbe1 {[%emt 0:01:22]} gxf5 {[%emt 0:00:20]} 26. Qe6 {[%emt 0:04:31]} Raf8 {[%emt 0:02:36]} 27. Qa2 {[%emt 0:01:44]} Kh8 {[%emt 0:00:38]} 28. Rf4 {[%emt 0:00:58]} Rg7 {[%emt 0:00:51]} 29. e6 {[%emt 0:00:18]} Rfg8 {[%emt 0:00:13]} 30. Rff1 {[%emt 0:00:18]} Qxf1+ {[%emt 0:00:31]} 0-1

[Event "USA-ch Women 2024"]
[Site "Saint Louis"]
[Date "2024.10.16"]
[Round "5.3"]
[White "Zatonskih, Anna"]
[Black "Abrahamyan, Tatev"]
[Result "0-1"]
[ECO "C02"]
[WhiteElo "2312"]
[BlackElo "2327"]
[Annotator "RC"]
[PlyCount "72"]
[EventDate "2024.10.09"]
[EventType "tourn"]
[EventCountry "USA"]
[SourceTitle "playchess.com"]
[Source "ChessBase"]
[SourceQuality "1"]
[TimeControl "40/5400+30:1800+30"]

1. e4 {[%emt 0:00:30]} e6 {[%emt 0:00:07]} 2. d4 {[%emt 0:00:32]} d5 {[%emt 0:00:06]} 3. e5 {[%emt 0:00:23]} c5 {[%emt 0:00:05]} 4. c3 {[%emt 0:00:04]} Nc6 {[%emt 0:00:04]} 5. Nf3 {[%emt 0:00:22]} Bd7 {[%emt 0:00:23]} 6. Be2 {[%emt 0:00:45]} Nge7 {[%emt 0:00:58]} 7. Na3 {[%emt 0:03:03]} Nf5 {[%emt 0:05:26]} 8. Nc2 {[%emt 0:01:39]} cxd4 {[%emt 0:00:14]} 9. cxd4 {[%emt 0:00:06]} Be7 {[%emt 0:00:03]} 10. O-O {[%emt 0:01:10]} O-O {[%emt 0:00:30]} 11. Ne3 {[%emt 0:01:31]} Nxe3 {[%emt 0:04:06]} 12. Bxe3 {[%emt 0:00:17]} f6 {[%emt 0:00:09]} 13. exf6 {[%emt 0:02:42]} Bxf6 {[%emt 0:01:14]} 14. Qd2 {[%emt 0:02:59]} Be8 {[%emt 0:06:25]} 15. h3 {[%emt 0:00:48]} Bh5 {[%emt 0:08:53]} 16. Rfe1 {[%emt 0:03:49]} Qe8 {[%emt 0:14:28]} 17. a3 {[%emt 0:25:12]} a5 {[%emt 0:04:25]} 18. Rad1 {[%emt 0:26:41]} a4 {[%emt 0:04:49]} 19. g4 {[%emt 0:02:00]} Bg6 {[%emt 0:01:15]} 20. Bg5 {[%emt 0:00:35]} Qe7 {[%emt 0:18:34]} 21. Qe3 {[%emt 0:03:22]} Be4 {[%emt 0:06:50]} 22. Bxf6 {[%emt 0:05:28]} Rxf6 {[%emt 0:00:24]} 23. Ng5 {[%emt 0:01:16]} Raf8 {[%emt 0:02:09]} 24. f3 {[%emt 0:01:55]} Bg6 {[%emt 0:01:46]} 25. h4 {[%emt 0:00:14]} h6 {[%emt 0:05:10]} 26. Nh3 {[%emt 0:00:05]} Qc7 {[%emt 0:00:40]} 27. f4 {[%emt 0:02:40]} h5 {[%emt 0:04:50]} 28. g5 {[%emt 0:02:44]} Rxf4 {[%emt 0:02:52]} 29. Nxf4 {[%emt 0:00:05]} Rxf4 {[%emt 0:00:04]} 30. Qxe6+ {[%emt 0:02:09]} Kh7 {[%emt 0:00:54]} 31. Qxd5 {[%emt 0:05:49]} Rxh4 {[%emt 0:03:46]} 32. Qg2 {[%emt 0:03:28]} Be4 {[%emt 0:02:09]} 33. Qxe4+ {[%emt 0:01:17]} Rxe4 {[%emt 0:00:05]} 34. Bd3 {[%emt 0:00:04]} Qg3+ {[%emt 0:00:06]} 35. Kf1 {[%emt 0:00:18]} Qf3+ {[%emt 0:00:33]} 36. Kg1 {[%emt 0:00:04]} Qxd3 {[%emt 0:00:15]} 0-1

[Event "USA-ch Women 2024"]
[Site "Saint Louis"]
[Date "2024.10.16"]
[Round "5.4"]
[White "Yip, Carissa"]
[Black "Tokhirjonova, Gulrukhbegim"]
[Result "1-0"]
[ECO "A08"]
[WhiteElo "2418"]
[BlackElo "2374"]
[Annotator "TA"]
[PlyCount "131"]
[EventDate "2024.10.09"]
[EventType "tourn"]
[EventCountry "USA"]
[SourceTitle "playchess.com"]
[Source "ChessBase"]
[SourceQuality "1"]
[TimeControl "40/5400+30:1800+30"]

{[%evp 18,131,44,16,11,0,0,0,0,0,35,0,0,2,0,-6,0,0,0,0,12,17,13,0,18,18,11,15,29,33,67,64,61,58,66,58,65,44,119,112,141,0,0,0,26,25,33,0,0,0,0,0,0,0,0,0,0,0,0,0,0,0,0,0,0,0,0,0,15,9,17,16,20,13,13,35,230,209,393,389,343,358,1672,1672,1587,1528,1587,1487,29965,29967,29966,29967,29967,29968,5121,5121,29982,29983,29983,29984,29984,29985,29985,29986,29986,29984,29984,29982,29982,29983,29987,29988,29988,29989,29991,29992]} 1. e4 {[%emt 0:00:03]} e6 {[%emt 0:00:13]} 2. d3 {[%emt 0:04:55]} d5 {[%emt 0:01:29]} 3. Nd2 {[%emt 0:00:03]} c5 {[%emt 0:00:37]} 4. g3 {[%emt 0:00:10]} Nc6 {[%emt 0:00:53]} 5. Bg2 {[%emt 0:00:03]} Nf6 {[%emt 0:00:22]} 6. Ngf3 {[%emt 0:00:05]} dxe4 {[%emt 0:04:58]} 7. dxe4 {[%emt 0:00:57]} e5 {[%emt 0:00:10]} 8. O-O {[%emt 0:00:30]} Be7 {[%emt 0:00:08]} 9. c3 {[%emt 0:06:43]} O-O {[%emt 0:00:34]} 10. Qc2 {[%emt 0:01:09]} b5 {[%emt 0:14:18]} 11. a4 {[%emt 0:01:14]} b4 {[%emt 0:00:58]} 12. Rd1 {[%emt 0:10:37]} Be6 {[%emt 0:06:33] The position is equal.} 13. Nc4 {[%emt 0:08:05]} Qb8 {[%emt 0:16:47]} 14. Qe2 {[%emt 0:01:50]} h6 {[%emt 0:13:16]} 15. Bd2 {[%emt 0:00:38]} Rd8 {[%emt 0:00:21]} 16. Be1 {[%emt 0:02:48]} Rxd1 {[%emt 0:02:27]} 17. Rxd1 {[%emt 0:00:04]} bxc3 {[%emt 0:00:13]} 18. bxc3 {[%emt 0:09:50]} Qc7 {[%emt 0:00:31]} 19. Nfd2 {[%emt 0:09:22]} Rd8 {[%emt 0:00:47]} 20. Ra1 {[%emt 0:02:11]} Na5 {[%emt 0:01:44]} 21. Bf1 {[%emt 0:00:11]} Nxc4 {[%emt 0:05:32]} 22. Nxc4 {[%emt 0:00:09]} Bc8 {[%emt 0:00:26]} 23. f3 {[%emt 0:01:31]} Ba6 {[%emt 0:00:24]} 24. Qa2 {[%emt 0:00:11]} Bf8 {[%emt 0:05:08]} 25. Rb1 {[%emt 0:00:53]} Bc8 {[%emt 0:08:15]} 26. a5 {[%emt 0:03:57][%cal Ba4a5,Ba5a6][%mdl 32]} Nh7 {[%emt 0:00:41]} 27. h4 {[%emt 0:02:31] Dodges Ng5} Kh8 {[%emt 0:02:42]} (27... g5 $14) 28. a6 {[%emt 0:03:08]} g5 {[%emt 0:02:13]} 29. h5 {[%emt 0:02:30] White is more active.} (29. Qa5 $16 Bd6 30. Qxc7 Bxc7 31. Bf2) 29... g4 $11 {[%emt 0:00:37]} 30. fxg4 {[%emt 0:01:32]} Nf6 {[%emt 0:00:45]} 31. Qa5 {[%emt 0:05:25]} Bd6 {[%emt 0:00:21]} 32. Be2 {[%emt 0:06:07]} Nxe4 {[%emt 0:00:55]} 33. Qa4 {[%emt 0:01:11]} Bd7 {[%emt 0:04:15]} 34. Qc2 {[%emt 0:04:40]} Bc6 {[%emt 0:00:09]} 35. Rd1 {[%emt 0:04:06]} Be7 {[%emt 0:02:50]} 36. Rxd8+ {[%emt 0:04:03]} Bxd8 {[%emt 0:00:01]} 37. Qd3 {[%emt 0:00:46] [#] Black must now prevent Bf3.} Be7 {[%emt 0:00:57]} 38. Bf3 {[%emt 0:02:08]} Ng5 {[%emt 0:00:14]} 39. Bxc6 {[%emt 0:00:37]} Qxc6 {[%emt 0:00:01]} 40. Nxe5 {[%emt 0:00:05]} Qe6 {[%emt 0:00:19]} 41. Qf5 {[%emt 0:30:39] aiming for Qxe6.} Qa2 {[%emt 0:07:08]} 42. Nf3 {[%emt 0:00:00] And now Nxg5 would win.} Nxf3+ {[%emt 0:10:24]} 43. Qxf3 {[%emt 0:00:00][%mdl 4096] Endgame. Black should prevent Qb7. KQB-KQB} Kg7 {[%emt 0:00:11]} 44. Qb7 $36 {[%emt 0:00:00][%mdl 2048] White has good play.} Bd6 {[%emt 0:07:05]} 45. Bf2 {[%emt 0:00:00]} Qe2 {[%emt 0:01:29] Prevents c4.} 46. Qc6 {[%emt 0:00:00]} Qd1+ {[%emt 0:04:12] Black cannot hold the game after this.} (46... Bf8 $14) 47. Kg2 $18 {[%emt 0:00:00]} Qd3 {[%emt 0:00:34] Prevents c4} (47... Bf8 {is a better defense.} 48. g5 (48. Bxc5 Bxc5 49. Qxc5 Qe2+ 50. Qf2 Qxa6 $14) 48... hxg5) 48. c4 $1 {[%emt 0:00:00]} ({Weaker is} 48. Bxc5 Qxg3+ (48... Qxc3 49. Qxd6 f6 50. Qc7+ Kg8 51. Qb8+ Kf7 52. Qxa7+ Ke6 53. Qe7+ Kd5 54. a7) 49. Kf1 Qd3+ 50. Kf2 Qd2+ 51. Kg1 Qd1+ 52. Kf2 Qc2+ 53. Kf1 Qd1+ 54. Kf2 Qd2+ 55. Kg1 Qh2+ 56. Kf1 Qh3+ 57. Kf2 Qh2+ 58. Kf1 Qh3+ 59. Kf2 Qg3+ 60. Kf1 Qd3+ 61. Kg2 Bxc5 (61... Qxc3 62. Qxd6 Qc2+ 63. Kf3 $18) 62. Qxc5 Qxa6 $11) 48... Be7 {[%emt 0:04:11]} 49. Qb7 {[%emt 0:00:00]} (49. Bxc5 $2 {loses.} Qxc4 50. g5 Bxc5 $19) 49... Bf8 {[%emt 0:01:44]} (49... Bf6 50. Bxc5 (50. Qxa7 Qe4+ 51. Kg1 Bd4 $14) 50... Qe2+ 51. Bf2 Bd4) 50. Qxa7 {[%emt 0:00:00] Intending Qb7 and mate.} Qe4+ {[%emt 0:03:08]} 51. Kg1 {[%emt 0:00:00]} Qb1+ {[%emt 0:00:56]} 52. Kh2 {[%emt 0:00:00][%cal Oa7b7] Threatening mate with Qb7!} Bd6 {[%emt 0:00:41] [#]} 53. Bd4+ $1 {[%emt 0:05:21][%mdl 512]} cxd4 {[%emt 0:00:39]} 54. Qxd4+ {[%emt 0:00:05]} Kh7 {[%emt 0:00:28]} 55. Qxd6 {[%emt 0:00:11] KQ-KQ} Qc2+ {[%emt 0:00:12]} 56. Kh3 {[%emt 0:00:18] White threatens a7 and mate.} Qxc4 {[%emt 0:00:11]} 57. Qf6 {[%emt 0:00:03] White mates.} Qa2 {[%emt 0:00:39]} 58. Qf5+ {[%emt 0:00:53]} Kg7 {[%emt 0:00:45]} 59. Qe5+ {[%emt 0:00:05]} Kh7 {[%emt 0:00:22]} 60. Qe4+ {[%emt 0:00:04]} Kg8 {[%emt 0:00:17]} 61. Qb7 {[%emt 0:00:27]} f5 {[%emt 0:00:59]} 62. Qc8+ {[%emt 0:02:09]} Kg7 {[%emt 0:00:04]} 63. Qd7+ {[%emt 0:00:07]} Kg8 {[%emt 0:01:02]} 64. a7 {[%emt 0:00:48]} fxg4+ {[%emt 0:00:13]} 65. Qxg4+ {[%emt 0:00:06]} Kh7 {[%emt 0:00:24]} 66. Qe4+ {[%emt 0:00:05] Weighted Error Value: White=0.08 (flawless) /Black=0.42.  Loses game:     	---       	Black=1      Mistake:       	White=1     	Black=3      Inaccurate:     	White=2     	Black=3      OK:         	White=19    	Black=15     Best:        	White=3     	Black=1      Strong:       	White=1     	---} 1-0

[Event "USA-ch Women 2024"]
[Site "Saint Louis"]
[Date "2024.10.16"]
[Round "5.5"]
[White "Lee, Megan"]
[Black "Paikidze, Nazi"]
[Result "1-0"]
[ECO "B67"]
[WhiteElo "2253"]
[BlackElo "2314"]
[Annotator "RC"]
[PlyCount "93"]
[EventDate "2024.10.09"]
[EventType "tourn"]
[EventCountry "USA"]
[SourceTitle "playchess.com"]
[Source "ChessBase"]
[SourceQuality "1"]
[TimeControl "40/5400+30:1800+30"]

1. e4 {[%emt 0:00:02]} c5 {[%emt 0:00:05]} 2. Nf3 {[%emt 0:00:04]} d6 {[%emt 0:00:06]} 3. d4 {[%emt 0:00:04]} cxd4 {[%emt 0:00:05]} 4. Nxd4 {[%emt 0:00:04]} Nf6 {[%emt 0:00:06]} 5. Nc3 {[%emt 0:00:04]} Nc6 {[%emt 0:00:06]} 6. Bg5 {[%emt 0:00:05]} e6 {[%emt 0:00:08]} 7. Qd2 {[%emt 0:00:06]} a6 {[%emt 0:00:15]} 8. O-O-O {[%emt 0:00:28]} Bd7 {[%emt 0:02:01]} 9. f3 {[%emt 0:00:56]} Be7 {[%emt 0:04:47]} 10. Kb1 {[%emt 0:07:10]} b5 {[%emt 0:07:46]} 11. Nxc6 {[%emt 0:00:43]} Bxc6 {[%emt 0:00:12]} 12. h4 {[%emt 0:01:11]} h6 {[%emt 0:04:51]} 13. Bf4 {[%emt 0:08:44]} b4 {[%emt 0:05:27]} 14. Ne2 {[%emt 0:01:55]} e5 {[%emt 0:01:36]} 15. Bh2 {[%emt 0:03:20]} h5 {[%emt 0:04:38]} 16. Ng3 {[%emt 0:09:15]} g6 {[%emt 0:02:13]} 17. Bc4 {[%emt 0:04:49]} Qc7 {[%emt 0:05:54]} 18. Qe2 {[%emt 0:13:54]} O-O {[%emt 0:05:46]} 19. Nf1 {[%emt 0:04:35]} Bb5 {[%emt 0:04:12]} 20. Ne3 {[%emt 0:01:22]} Rfc8 {[%emt 0:02:08]} 21. Bd3 {[%emt 0:00:15]} Bxd3 {[%emt 0:10:35]} 22. Rxd3 {[%emt 0:00:27]} a5 {[%emt 0:02:33]} 23. g4 {[%emt 0:03:02]} a4 {[%emt 0:00:20]} 24. g5 {[%emt 0:07:19]} Ne8 {[%emt 0:05:07]} 25. Nd5 {[%emt 0:00:19]} Qb7 {[%emt 0:00:42]} 26. f4 {[%emt 0:03:46]} exf4 {[%emt 0:01:49]} 27. Bxf4 {[%emt 0:00:43]} Bf8 {[%emt 0:02:15]} 28. Bd2 {[%emt 0:03:04]} Bg7 {[%emt 0:01:45]} 29. Bxb4 {[%emt 0:00:45]} Rc4 {[%emt 0:05:46]} 30. a3 {[%emt 0:01:48]} Nc7 {[%emt 0:00:47]} 31. Rf3 {[%emt 0:03:40]} Qa6 {[%emt 0:07:36]} 32. Qd3 {[%emt 0:06:16]} Nxd5 {[%emt 0:04:27]} 33. Qxd5 {[%emt 0:00:15]} Ra7 {[%emt 0:01:22]} 34. Rd1 {[%emt 0:01:52]} Qc8 {[%emt 0:04:02]} 35. c3 {[%emt 0:07:08]} Rd7 {[%emt 0:00:35]} 36. Bxd6 {[%emt 0:01:42]} Qc6 {[%emt 0:05:55]} 37. Qxc6 {[%emt 0:01:10]} Rxc6 {[%emt 0:00:02]} 38. Rfd3 {[%emt 0:00:10]} Rc4 {[%emt 0:00:18]} 39. e5 {[%emt 0:02:29]} Rxh4 {[%emt 0:00:28]} 40. Rd4 {[%emt 0:00:17]} Rxd4 {[%emt 0:01:08]} 41. Rxd4 {[%emt 0:31:33]} Bf8 {[%emt 0:07:02]} 42. c4 {[%emt 0:00:00]} f6 {[%emt 0:12:03]} 43. gxf6 {[%emt 0:00:00]} Kf7 {[%emt 0:01:39]} 44. c5 {[%emt 0:00:00]} Rd8 {[%emt 0:01:16]} 45. c6 {[%emt 0:00:00]} Bh6 {[%emt 0:01:04]} 46. c7 {[%emt 0:00:00]} Rc8 {[%emt 0:00:23]} 47. Rb4 {[%emt 0:00:00]} 1-0